{"text_format":"1","workbook":"xlsx","n_sheets":1,"sheets":["Msg"],"not_rendered":{"charts":0,"images":0,"macros":1,"external_links":0,"defined_names":0,"comments":0,"pivot_tables":0},"unopened":[],"bounds":{"document_bytes":16777216,"sheet_cells":100000,"rows_first":2000,"rows_last":500,"rows_between":2000,"halvings":0,"cell_chars":16384,"cell_head_chars":4096},"cells_cut":0,"cells_raw":0,"read":"whole","date_system":"1900"}

{"sheet":"Msg","index":0,"n_rows":31,"n_cols":8,"rows_kept":31,"cut":false,"hidden":false,"merged":[]}
["اختر","#","الاسم","رقم الموبايل","الرسالة",null,"Contact","Message"]
[false,1,"جاسم الزعابي",5027406,{"$f":"\"السيد ولي الأمر الطالب \"&C2&\"\"","v":"السيد ولي الأمر الطالب جاسم الزعابي"},{"$f":"_xlfn._xlws.FILTER(D2:D31,A2:A31=TRUE,\"\")","v":""},{"$f":"IF(F2=\"\",\"\",F2)","v":""},{"$f":"IF(F2=\"\",\"\",E2)","v":""}]
[false,2,"حامد  الطنيجي",5030290,{"$f":"\"السيد ولي الأمر الطالب \"&C3&\"\"","v":"السيد ولي الأمر الطالب حامد  الطنيجي"},null,"",""]
[false,3,"حمد يوسف ",5040065,"السيد ولي الأمر الطالب حمد يوسف ",null,"",""]
[false,4,"حمدان  الرميثي",5054513,"السيد ولي الأمر الطالب حمدان  الرميثي",null,"",""]
[false,5,"حمدان راشد ",5074978,"السيد ولي الأمر الطالب حمدان راشد ",null,"",""]
[false,6,"حمدان الجنيبي",5080358,"السيد ولي الأمر الطالب حمدان الجنيبي",null,"",""]
[false,7,"راشد  الحوسنى",5084742,"السيد ولي الأمر الطالب راشد  الحوسنى",null,"",""]
[false,8,"سعيد الكثيري",5032350,"السيد ولي الأمر الطالب سعيد الكثيري",null,"",""]
[false,9,"سعيد الكتبي",5041319,"السيد ولي الأمر الطالب سعيد الكتبي",null,"",""]
[false,10,"سلطان حسن",5038895,"السيد ولي الأمر الطالب سلطان حسن",null,"",""]
[false,11,"سهيل علي",5080806,"السيد ولي الأمر الطالب سهيل علي",null,"",""]
[false,12,"سيف زايد",5027930,"السيد ولي الأمر الطالب سيف زايد",null,"",""]
[false,13,"سيف سالم ",5036756,"السيد ولي الأمر الطالب سيف سالم ",null,"",""]
[false,14,"سيف طلال ",5049457,"السيد ولي الأمر الطالب سيف طلال ",null,"",""]
[false,15,"صياح سيف",5078475,"السيد ولي الأمر الطالب صياح سيف",null,"",""]
[false,16,"عبدالرحمن عبدالله",5088424,"السيد ولي الأمر الطالب عبدالرحمن عبدالله",null,"",""]
[false,17,"عبدالله احمد ",5074737,"السيد ولي الأمر الطالب عبدالله احمد ",null,"",""]
[false,18,"غانم سيف",5068076,"السيد ولي الأمر الطالب غانم سيف",null,"",""]
[false,19,"فارس حسن",5079627,"السيد ولي الأمر الطالب فارس حسن",null,"",""]
[false,20,"منصور صالح",5048428,"السيد ولي الأمر الطالب منصور صالح",null,"",""]
[false,21,"منصور علي",5028804,"السيد ولي الأمر الطالب منصور علي",null,"",""]
[false,22,"احمد سعيد بخيت على",5037818,"السيد ولي الأمر الطالب احمد سعيد بخيت على",null,"",""]
[false,23,"حمدان يوسف سليم العامرى",5052622,"السيد ولي الأمر الطالب حمدان يوسف سليم العامرى",null,"",""]
[false,24,"اسلام زينهم جابر",5036499,"السيد ولي الأمر الطالب اسلام زينهم جابر",null,"",""]
[false,25,"خليفة عبدالناصر الحارثي",5055430,"السيد ولي الأمر الطالب خليفة عبدالناصر الحارثي",null,"",""]
[false,26,"محمد عبدالحميد يسين",5073101,"السيد ولي الأمر الطالب محمد عبدالحميد يسين",null,"",""]
[false,27,"محمد علي محمد الفقي",5028983,"السيد ولي الأمر الطالب محمد علي محمد الفقي",null,"",""]
[false,28,"محمد أسامة",5048812,"السيد ولي الأمر الطالب محمد أسامة",null,"",""]
[false,29,"محمد احمد",5063896,"السيد ولي الأمر الطالب محمد احمد",null,"",""]
[false,30,"سيف علي",5085599,"السيد ولي الأمر الطالب سيف علي",null,"",""]